[Event "Late-Titled-Tuesday-Blitz-October-03-2023"]
[Site "Chess.com"]
[Date "2023.10.03"]
[Round "11"]
[White "talaicito"]
[Black "Onthequiet"]
[Result "0-1"]
[WhiteElo "2179"]
[BlackElo "2391"]
[TimeControl "180+1"]
[EndTime "16:00:02 PDT"]
[Termination "Onthequiet won by checkmate"]

1. d4 {[%clk 0:03:00.9]} 1... b6 {[%clk 0:02:58.5]} 2. Nc3 {[%clk 0:03:01.2]}
2... Bb7 {[%clk 0:02:59]} 3. e4 {[%clk 0:03:01.5]} 3... g6 {[%clk 0:02:58.7]} 4.
f4 {[%clk 0:02:57.9]} 4... Bg7 {[%clk 0:02:58.6]} 5. Nf3 {[%clk 0:02:58.5]} 5...
d6 {[%clk 0:02:58.5]} 6. Bd3 {[%clk 0:02:56.8]} 6... Nf6 {[%clk 0:02:58.2]} 7.
O-O {[%clk 0:02:55.4]} 7... O-O {[%clk 0:02:57.9]} 8. Kh1 {[%clk 0:02:54.9]}
8... c5 {[%clk 0:02:57.3]} 9. e5 {[%clk 0:02:51.1]} 9... Nh5 {[%clk 0:02:50.1]}
10. d5 {[%clk 0:02:49.8]} 10... Bh6 {[%clk 0:02:43.5]} 11. g3 {[%clk 0:02:37.6]}
11... e6 {[%clk 0:02:42.4]} 12. Be4 {[%clk 0:02:23.9]} 12... dxe5 {[%clk
0:02:36.4]} 13. Nxe5 {[%clk 0:02:19.6]} 13... exd5 {[%clk 0:02:26.9]} 14. Nxd5
{[%clk 0:02:13]} 14... Nc6 {[%clk 0:02:19.8]} 15. g4 {[%clk 0:01:22.5]} 15...
Nxe5 {[%clk 0:02:10.3]} 16. fxe5 {[%clk 0:01:20.3]} 16... Bxc1 {[%clk
0:02:08.1]} 17. Rxc1 {[%clk 0:01:19.9]} 17... Bxd5 {[%clk 0:01:55.7]} 18. Bxd5
{[%clk 0:01:19.9]} 18... Ng7 {[%clk 0:01:54.7]} 19. Bxa8 {[%clk 0:01:03.4]}
19... Qxa8+ {[%clk 0:01:55.6]} 20. Qf3 {[%clk 0:01:03.5]} 20... Qb8 {[%clk
0:01:55.1]} 21. Qf6 {[%clk 0:00:57.5]} 21... Ne6 {[%clk 0:01:53]} 22. Rcd1
{[%clk 0:00:56.7]} 22... Qb7+ {[%clk 0:01:51.2]} 23. Qf3 {[%clk 0:00:41.4]}
23... Qa6 {[%clk 0:01:50.7]} 24. Rd7 {[%clk 0:00:36.3]} 24... Ng5 {[%clk
0:01:42.1]} 25. Qf6 {[%clk 0:00:34.2]} 25... Qe2 {[%clk 0:01:40.7]} 26. Rxa7
{[%clk 0:00:10.4]} 26... Qe4+ {[%clk 0:01:34.6]} 27. Kg1 {[%clk 0:00:10.2]}
27... Nh3# {[%clk 0:01:32.4]} 0-1

[Event "Late-Titled-Tuesday-Blitz-October-03-2023"]
[Site "Chess.com"]
[Date "2023.10.03"]
[Round "11"]
[White "artin10862"]
[Black "RichardLeyvaP"]
[Result "1-0"]
[WhiteElo "2816"]
[BlackElo "2618"]
[TimeControl "180+1"]
[EndTime "16:00:03 PDT"]
[Termination "artin10862 won by resignation"]

1. g3 {[%clk 0:02:57.9]} 1... g6 {[%clk 0:02:59.7]} 2. d4 {[%clk 0:02:56.2]}
2... Bg7 {[%clk 0:02:59.5]} 3. Nf3 {[%clk 0:02:56.1]} 3... Nf6 {[%clk
0:02:59.5]} 4. Bg2 {[%clk 0:02:56.6]} 4... O-O {[%clk 0:02:59.8]} 5. O-O {[%clk
0:02:57.1]} 5... d6 {[%clk 0:03:00.2]} 6. Re1 {[%clk 0:02:54.7]} 6... d5 {[%clk
0:02:59.9]} 7. c3 {[%clk 0:02:39.8]} 7... Ne4 {[%clk 0:02:56.7]} 8. Nfd2 {[%clk
0:02:31.2]} 8... Nxd2 {[%clk 0:02:56.3]} 9. Nxd2 {[%clk 0:02:31.6]} 9... c6
{[%clk 0:02:55.4]} 10. e4 {[%clk 0:02:29.5]} 10... dxe4 {[%clk 0:02:55.6]} 11.
Nxe4 {[%clk 0:02:28.9]} 11... Nd7 {[%clk 0:02:55.9]} 12. Bf4 {[%clk 0:02:23.1]}
12... Nf6 {[%clk 0:02:54.4]} 13. Nc5 {[%clk 0:02:22.1]} 13... Nd5 {[%clk
0:02:49.7]} 14. Be5 {[%clk 0:02:21.8]} 14... f6 {[%clk 0:02:31.5]} 15. Bf4
{[%clk 0:02:19.7]} 15... Nxf4 {[%clk 0:02:31.4]} 16. gxf4 {[%clk 0:02:20.3]}
16... Qd6 {[%clk 0:02:30.8]} 17. Qb3+ {[%clk 0:02:05.7]} 17... Kh8 {[%clk
0:02:28.4]} 18. Ne6 {[%clk 0:02:05.8]} 18... Bxe6 {[%clk 0:02:25.7]} 19. Rxe6
{[%clk 0:02:00.1]} 19... Qxf4 {[%clk 0:02:21.8]} 20. Rxe7 {[%clk 0:02:00.3]}
20... b6 {[%clk 0:02:04.8]} 21. Bxc6 {[%clk 0:01:53.7]} 21... Qg5+ {[%clk
0:01:55]} 22. Kh1 {[%clk 0:01:50.9]} 22... Rac8 {[%clk 0:01:54]} 23. Bg2 {[%clk
0:01:44.1]} 23... Qf4 {[%clk 0:01:37.4]} 24. Kg1 {[%clk 0:01:37.4]} 24... Rc7
{[%clk 0:01:33.6]} 25. Rae1 {[%clk 0:01:34]} 25... h5 {[%clk 0:01:33.7]} 26. Qc2
{[%clk 0:01:22]} 26... Kh7 {[%clk 0:01:33.1]} 27. Rxc7 {[%clk 0:01:12]} 27...
Qxc7 {[%clk 0:01:32.5]} 28. Qe2 {[%clk 0:01:06.1]} 28... Rf7 {[%clk 0:01:31.5]}
29. Bd5 {[%clk 0:01:03.9]} 29... Rd7 {[%clk 0:01:30.9]} 30. Be4 {[%clk
0:01:02.7]} 30... f5 {[%clk 0:01:30.7]} 31. Bxf5 {[%clk 0:00:48.6]} 31... gxf5
{[%clk 0:01:30.5]} 32. Qxh5+ {[%clk 0:00:47.3]} 32... Bh6 {[%clk 0:01:30.1]} 33.
Re6 {[%clk 0:00:42.5]} 33... Rg7+ {[%clk 0:01:26.1]} 34. Kh1 {[%clk 0:00:40.8]}
1-0

[Event "Late-Titled-Tuesday-Blitz-October-03-2023"]
[Site "Chess.com"]
[Date "2023.10.03"]
[Round "11"]
[White "Mikedannnn"]
[Black "ArtemDyachuk"]
[Result "1-0"]
[WhiteElo "2588"]
[BlackElo "2690"]
[TimeControl "180+1"]
[EndTime "16:00:05 PDT"]
[Termination "Mikedannnn won by resignation"]

1. e4 {[%clk 0:03:00.9]} 1... c5 {[%clk 0:02:58.4]} 2. Nf3 {[%clk 0:03:00.2]}
2... d6 {[%clk 0:02:58.2]} 3. d4 {[%clk 0:02:47.3]} 3... cxd4 {[%clk 0:02:59.1]}
4. Nxd4 {[%clk 0:02:48.1]} 4... Nf6 {[%clk 0:02:57.2]} 5. Nc3 {[%clk 0:02:46.2]}
5... Nc6 {[%clk 0:02:56.3]} 6. Bc4 {[%clk 0:02:44.2]} 6... e6 {[%clk 0:02:54.4]}
7. Be3 {[%clk 0:02:43.1]} 7... a6 {[%clk 0:02:53.8]} 8. Qe2 {[%clk 0:02:37.9]}
8... Na5 {[%clk 0:02:53.7]} 9. Bd3 {[%clk 0:02:34.1]} 9... Bd7 {[%clk
0:02:51.8]} 10. f4 {[%clk 0:02:23.1]} 10... b5 {[%clk 0:02:40.6]} 11. a3 {[%clk
0:02:21.1]} 11... Qc7 {[%clk 0:02:28.7]} 12. O-O {[%clk 0:02:05.5]} 12... Be7
{[%clk 0:02:24.9]} 13. Kh1 {[%clk 0:01:30.4]} 13... O-O {[%clk 0:02:16]} 14. Bg1
{[%clk 0:01:29.2]} 14... g6 {[%clk 0:02:12.2]} 15. e5 {[%clk 0:01:27.4]} 15...
dxe5 {[%clk 0:02:12.2]} 16. fxe5 {[%clk 0:01:28.3]} 16... Nh5 {[%clk 0:02:12]}
17. Rae1 {[%clk 0:01:00.3]} 17... Ng7 {[%clk 0:02:02]} 18. Nf3 {[%clk
0:00:56.8]} 18... b4 {[%clk 0:01:58]} 19. axb4 {[%clk 0:00:52.3]} 19... Bxb4
{[%clk 0:01:58.9]} 20. Ne4 {[%clk 0:00:48.5]} 20... Bxe1 {[%clk 0:01:47.3]} 21.
Nf6+ {[%clk 0:00:46.7]} 21... Kh8 {[%clk 0:01:46]} 22. Qe3 {[%clk 0:00:43.8]}
22... Nf5 {[%clk 0:01:24.9]} 23. Bxf5 {[%clk 0:00:42.5]} 23... Kg7 {[%clk
0:01:25.1]} 24. Nh5+ {[%clk 0:00:34.7]} 24... Kh8 {[%clk 0:01:17.6]} 25. Qh6
{[%clk 0:00:33]} 25... Rg8 {[%clk 0:01:17.3]} 26. Ng5 {[%clk 0:00:29.9]} 1-0

[Event "Late-Titled-Tuesday-Blitz-October-03-2023"]
[Site "Chess.com"]
[Date "2023.10.03"]
[Round "11"]
[White "Gyulamiryan-koryun"]
[Black "CraiggoryC"]
[Result "1-0"]
[WhiteElo "2017"]
[BlackElo "2256"]
[TimeControl "180+1"]
[EndTime "16:00:06 PDT"]
[Termination "Gyulamiryan-koryun won by resignation"]

1. e4 {[%clk 0:02:58.6]} 1... e6 {[%clk 0:03:00.5]} 2. d4 {[%clk 0:02:58]} 2...
d5 {[%clk 0:03:01.1]} 3. Nd2 {[%clk 0:02:57.3]} 3... Be7 {[%clk 0:03:00.8]} 4.
f4 {[%clk 0:02:55.5]} 4... dxe4 {[%clk 0:02:58.1]} 5. Nxe4 {[%clk 0:02:54.9]}
5... Nf6 {[%clk 0:02:58.8]} 6. Bd3 {[%clk 0:02:50.4]} 6... Nxe4 {[%clk
0:02:39.7]} 7. Bxe4 {[%clk 0:02:50.1]} 7... c5 {[%clk 0:02:40.4]} 8. Nf3 {[%clk
0:02:45.2]} 8... Nc6 {[%clk 0:02:37.5]} 9. Bxc6+ {[%clk 0:02:43.8]} 9... bxc6
{[%clk 0:02:38.4]} 10. c3 {[%clk 0:02:32.5]} 10... O-O {[%clk 0:02:35.3]} 11.
O-O {[%clk 0:02:30.5]} 11... cxd4 {[%clk 0:02:34.6]} 12. Nxd4 {[%clk 0:02:27.8]}
12... c5 {[%clk 0:02:13.4]} 13. Nc6 {[%clk 0:02:23.2]} 13... Qe8 {[%clk
0:02:13.4]} 14. Nxe7+ {[%clk 0:02:21.8]} 14... Qxe7 {[%clk 0:02:14.3]} 15. Be3
{[%clk 0:02:17.9]} 15... Rb8 {[%clk 0:02:11.6]} 16. Qh5 {[%clk 0:02:10.9]} 16...
f5 {[%clk 0:01:44.8]} 17. b3 {[%clk 0:02:10]} 17... a5 {[%clk 0:01:32.1]} 18.
Rfd1 {[%clk 0:01:56.9]} 18... a4 {[%clk 0:01:18.5]} 19. Qf3 {[%clk 0:01:31.8]}
19... Bb7 {[%clk 0:01:16.5]} 20. Qe2 {[%clk 0:01:26.3]} 20... Be4 {[%clk
0:00:53]} 21. Qc4 {[%clk 0:01:21.5]} 21... Rfc8 {[%clk 0:00:48.1]} 22. bxa4
{[%clk 0:01:14.7]} 22... Rb2 {[%clk 0:00:39.7]} 23. Rd2 {[%clk 0:01:14.1]} 23...
Qb7 {[%clk 0:00:33.1]} 24. Qxe6+ {[%clk 0:01:12.2]} 24... Kh8 {[%clk 0:00:33.5]}
25. Rxb2 {[%clk 0:01:05.1]} 1-0

[Event "Late-Titled-Tuesday-Blitz-October-03-2023"]
[Site "Chess.com"]
[Date "2023.10.03"]
[Round "11"]
[White "valemava"]
[Black "traack"]
[Result "0-1"]
[WhiteElo "2314"]
[BlackElo "2440"]
[TimeControl "180+1"]
[EndTime "16:00:12 PDT"]
[Termination "traack won by resignation"]

1. e4 {[%clk 0:03:00.9]} 1... c5 {[%clk 0:03:00]} 2. a3 {[%clk 0:02:59.1]} 2...
Nc6 {[%clk 0:02:57.4]} 3. b4 {[%clk 0:02:59]} 3... b6 {[%clk 0:02:52.2]} 4. b5
{[%clk 0:02:58.6]} 4... Ne5 {[%clk 0:02:43.1]} 5. Bb2 {[%clk 0:02:52.5]} 5... d6
{[%clk 0:02:41.7]} 6. f4 {[%clk 0:02:48.1]} 6... Ng6 {[%clk 0:02:41.6]} 7. g3
{[%clk 0:02:47.9]} 7... Bb7 {[%clk 0:02:35.9]} 8. d3 {[%clk 0:02:47.2]} 8... e6
{[%clk 0:02:25.2]} 9. h4 {[%clk 0:02:45.2]} 9... h5 {[%clk 0:02:24.2]} 10. Be2
{[%clk 0:02:42.3]} 10... Nf6 {[%clk 0:02:24.5]} 11. Bf3 {[%clk 0:02:41.6]} 11...
Be7 {[%clk 0:02:21.9]} 12. Nd2 {[%clk 0:02:39.7]} 12... Qd7 {[%clk 0:02:17.6]}
13. Nh3 {[%clk 0:02:39.2]} 13... Qxb5 {[%clk 0:02:16.9]} 14. Rb1 {[%clk
0:02:37.4]} 14... Qa5 {[%clk 0:02:15.3]} 15. O-O {[%clk 0:02:33.3]} 15... d5
{[%clk 0:02:06.2]} 16. Ng5 {[%clk 0:02:23.1]} 16... O-O {[%clk 0:02:02]} 17. Nb3
{[%clk 0:02:10.1]} 17... Qa4 {[%clk 0:01:59.1]} 18. Bxh5 {[%clk 0:02:09]} 18...
dxe4 {[%clk 0:01:54.9]} 19. Bxg6 {[%clk 0:02:08.3]} 19... fxg6 {[%clk
0:01:54.1]} 20. Nxe6 {[%clk 0:02:08]} 20... exd3 {[%clk 0:01:53.5]} 21. Nxf8
{[%clk 0:02:06.4]} 21... Qe4 {[%clk 0:01:52.8]} 22. Qd2 {[%clk 0:01:21.9]} 22...
c4 {[%clk 0:01:44.5]} 23. Nd4 {[%clk 0:01:19.2]} 23... Bc5 {[%clk 0:01:40.1]}
24. c3 {[%clk 0:01:17.8]} 24... Ng4 {[%clk 0:01:35.5]} 25. Qh2 {[%clk
0:00:18.6]} 25... Nxh2 {[%clk 0:01:31.4]} 26. Kxh2 {[%clk 0:00:18.8]} 26... Bxd4
{[%clk 0:01:27]} 27. Rf2 {[%clk 0:00:16.9]} 27... Bxf2 {[%clk 0:01:24.1]} 28.
Kh3 {[%clk 0:00:16.4]} 28... Qf3 {[%clk 0:01:18.2]} 0-1

[Event "Late-Titled-Tuesday-Blitz-October-03-2023"]
[Site "Chess.com"]
[Date "2023.10.03"]
[Round "11"]
[White "BeanScreen"]
[Black "Bilan_Danila"]
[Result "1-0"]
[WhiteElo "2720"]
[BlackElo "2547"]
[TimeControl "180+1"]
[EndTime "16:00:14 PDT"]
[Termination "BeanScreen won by resignation"]

1. e4 {[%clk 0:03:00.9]} 1... c6 {[%clk 0:03:00.2]} 2. d4 {[%clk 0:03:00.6]}
2... d5 {[%clk 0:03:00.7]} 3. exd5 {[%clk 0:03:01.5]} 3... cxd5 {[%clk
0:03:01.1]} 4. Bd3 {[%clk 0:03:01.9]} 4... Nc6 {[%clk 0:03:01.4]} 5. c3 {[%clk
0:03:02.4]} 5... Qc7 {[%clk 0:03:01.9]} 6. h3 {[%clk 0:03:01.6]} 6... g6 {[%clk
0:03:02]} 7. Qc2 {[%clk 0:03:01.1]} 7... e5 {[%clk 0:03:00.4]} 8. dxe5 {[%clk
0:02:59.6]} 8... Nxe5 {[%clk 0:03:01.3]} 9. Ne2 {[%clk 0:02:04.6]} 9... Nf6
{[%clk 0:02:48.1]} 10. Bf4 {[%clk 0:01:57.2]} 10... Bd6 {[%clk 0:02:43]} 11. O-O
{[%clk 0:01:49.3]} 11... Nf3+ {[%clk 0:02:36.2]} 12. gxf3 {[%clk 0:01:48.9]}
12... Bxf4 {[%clk 0:02:36.1]} 13. Qa4+ {[%clk 0:01:49.3]} 13... Bd7 {[%clk
0:02:14.7]} 14. Qxf4 {[%clk 0:01:49.5]} 14... O-O-O {[%clk 0:02:07.5]} 15. Qxc7+
{[%clk 0:01:46.8]} 15... Kxc7 {[%clk 0:02:08.4]} 16. Kg2 {[%clk 0:01:44.3]}
16... Rhe8 {[%clk 0:02:06.3]} 17. Nd2 {[%clk 0:01:43.9]} 17... Bf5 {[%clk
0:02:03]} 18. Nf4 {[%clk 0:01:30.7]} 18... Bxd3 {[%clk 0:01:50]} 19. Nxd3 {[%clk
0:01:31.6]} 19... d4 {[%clk 0:01:50.4]} 20. c4 {[%clk 0:01:19.7]} 20... Re2
{[%clk 0:01:46.8]} 21. Rad1 {[%clk 0:01:18.5]} 21... Nh5 {[%clk 0:01:42.2]} 22.
Rfe1 {[%clk 0:01:16.6]} 22... Rde8 {[%clk 0:01:40.9]} 23. Rxe2 {[%clk 0:01:14]}
23... Rxe2 {[%clk 0:01:41.8]} 24. Kf1 {[%clk 0:01:14]} 24... Re7 {[%clk
0:01:37]} 25. Re1 {[%clk 0:01:10.4]} 25... Rd7 {[%clk 0:01:36.9]} 26. b4 {[%clk
0:01:05.3]} 26... b6 {[%clk 0:01:37.1]} 27. c5 {[%clk 0:01:04.4]} 27... f5
{[%clk 0:01:32.2]} 28. c6 {[%clk 0:01:02.4]} 28... Rg7 {[%clk 0:01:27.8]} 29. b5
{[%clk 0:01:02.1]} 29... a6 {[%clk 0:01:23.8]} 30. a4 {[%clk 0:01:00.8]} 30...
Nf6 {[%clk 0:01:22.2]} 31. Nb4 {[%clk 0:00:57.9]} 31... a5 {[%clk 0:01:19.4]}
32. Na6+ {[%clk 0:00:48.1]} 32... Kd8 {[%clk 0:01:15.4]} 33. Re6 {[%clk
0:00:47.6]} 33... Nh5 {[%clk 0:01:07]} 34. c7+ {[%clk 0:00:47.3]} 34... Kd7
{[%clk 0:01:05]} 35. Rd6+ {[%clk 0:00:45.3]} 35... Kxd6 {[%clk 0:01:03.2]} 36.
c8=Q {[%clk 0:00:45.2]} 1-0

[Event "Late-Titled-Tuesday-Blitz-October-03-2023"]
[Site "Chess.com"]
[Date "2023.10.03"]
[Round "11"]
[White "Cambek64"]
[Black "koncheto"]
[Result "1-0"]
[WhiteElo "2467"]
[BlackElo "2529"]
[TimeControl "180+1"]
[EndTime "16:00:18 PDT"]
[Termination "Cambek64 won by resignation"]

1. b3 {[%clk 0:02:59.6]} 1... d5 {[%clk 0:02:59.4]} 2. Bb2 {[%clk 0:02:59.5]}
2... Bg4 {[%clk 0:02:59.7]} 3. g3 {[%clk 0:02:57.6]} 3... Nd7 {[%clk 0:02:58.6]}
4. Bg2 {[%clk 0:02:58.1]} 4... Ngf6 {[%clk 0:02:58.3]} 5. Nf3 {[%clk 0:02:57.2]}
5... c5 {[%clk 0:02:57]} 6. O-O {[%clk 0:02:55.2]} 6... Qc7 {[%clk 0:02:56.8]}
7. d4 {[%clk 0:02:54.7]} 7... e6 {[%clk 0:02:57]} 8. c4 {[%clk 0:02:52.4]} 8...
dxc4 {[%clk 0:02:56.7]} 9. bxc4 {[%clk 0:02:51.3]} 9... cxd4 {[%clk 0:02:53.3]}
10. Qxd4 {[%clk 0:02:46.8]} 10... Bc5 {[%clk 0:02:42.5]} 11. Qc3 {[%clk
0:02:46.1]} 11... O-O {[%clk 0:02:37.9]} 12. Nbd2 {[%clk 0:02:46.5]} 12... Rfd8
{[%clk 0:02:32.1]} 13. Nb3 {[%clk 0:02:32.2]} 13... Bf8 {[%clk 0:02:30.3]} 14.
Rac1 {[%clk 0:02:28]} 14... Rac8 {[%clk 0:02:26.3]} 15. Qe3 {[%clk 0:02:23.9]}
15... b6 {[%clk 0:02:22.4]} 16. Nfd4 {[%clk 0:02:20.8]} 16... Nc5 {[%clk
0:02:12]} 17. Nb5 {[%clk 0:02:17.1]} 17... Qb8 {[%clk 0:02:08.3]} 18. Be5 {[%clk
0:02:15.6]} 18... Nxb3 {[%clk 0:01:58.9]} 19. axb3 {[%clk 0:02:12.7]} 19... Bd6
{[%clk 0:01:56.4]} 20. Nxd6 {[%clk 0:02:07.1]} 20... Rxd6 {[%clk 0:01:56.6]} 21.
Rcd1 {[%clk 0:01:51.4]} 21... Rcd8 {[%clk 0:01:53.5]} 22. Rxd6 {[%clk
0:01:44.9]} 22... Rxd6 {[%clk 0:01:51.8]} 23. Qf4 {[%clk 0:01:32.5]} 23... Bxe2
{[%clk 0:01:32.5]} 24. Bxd6 {[%clk 0:01:31]} 24... Qd8 {[%clk 0:01:30.6]} 25.
Re1 {[%clk 0:01:28.9]} 25... Bh5 {[%clk 0:01:30.1]} 26. h3 {[%clk 0:01:27.2]}
26... Bg6 {[%clk 0:01:30.1]} 27. Be5 {[%clk 0:01:21.3]} 27... Nd7 {[%clk
0:01:22.5]} 28. Rd1 {[%clk 0:01:16.3]} 28... Qe7 {[%clk 0:01:22.5]} 29. Bd6
{[%clk 0:01:14.5]} 29... Qd8 {[%clk 0:01:17.2]} 30. Rd2 {[%clk 0:01:08.3]} 30...
h6 {[%clk 0:01:02]} 31. Ba3 {[%clk 0:01:06.3]} 31... e5 {[%clk 0:00:53.3]} 32.
Qg4 {[%clk 0:01:01.5]} 32... Qf8 {[%clk 0:00:47.3]} 33. Bxf8 {[%clk 0:00:59.8]}
1-0

[Event "Late-Titled-Tuesday-Blitz-October-03-2023"]
[Site "Chess.com"]
[Date "2023.10.03"]
[Round "11"]
[White "babero_gordo"]
[Black "NMZanette"]
[Result "0-1"]
[WhiteElo "1979"]
[BlackElo "2308"]
[TimeControl "180+1"]
[EndTime "16:00:21 PDT"]
[Termination "NMZanette won by resignation"]

1. e4 {[%clk 0:03:00.9]} 1... c5 {[%clk 0:02:57]} 2. d4 {[%clk 0:03:00.4]} 2...
cxd4 {[%clk 0:02:57.1]} 3. c3 {[%clk 0:03:00.8]} 3... dxc3 {[%clk 0:02:56.8]} 4.
Nxc3 {[%clk 0:03:00.6]} 4... d6 {[%clk 0:02:57.2]} 5. Nf3 {[%clk 0:03:00.5]}
5... Nc6 {[%clk 0:02:57]} 6. Bc4 {[%clk 0:03:00.6]} 6... Nf6 {[%clk 0:02:56.6]}
7. e5 {[%clk 0:02:52.3]} 7... dxe5 {[%clk 0:02:54.5]} 8. Qxd8+ {[%clk
0:02:41.9]} 8... Nxd8 {[%clk 0:02:53]} 9. Nxe5 {[%clk 0:02:41.7]} 9... a6 {[%clk
0:02:44.4]} 10. O-O {[%clk 0:02:36.1]} 10... Be6 {[%clk 0:02:39.2]} 11. Be2
{[%clk 0:02:30.9]} 11... Nd5 {[%clk 0:02:29]} 12. Ne4 {[%clk 0:02:20.5]} 12...
f6 {[%clk 0:02:22.2]} 13. Nf3 {[%clk 0:02:15.6]} 13... Rc8 {[%clk 0:02:17.5]}
14. Rd1 {[%clk 0:02:14.5]} 14... Bf7 {[%clk 0:02:10.2]} 15. Ng3 {[%clk
0:02:07.2]} 15... e6 {[%clk 0:02:07.7]} 16. Nd4 {[%clk 0:02:05.1]} 16... Nc6
{[%clk 0:02:02.6]} 17. Nb3 {[%clk 0:01:59.5]} 17... Be7 {[%clk 0:01:59.5]} 18.
Bf3 {[%clk 0:01:59.6]} 18... O-O {[%clk 0:01:58.8]} 19. Ne4 {[%clk 0:01:58.7]}
19... Ne5 {[%clk 0:01:55.3]} 20. Be2 {[%clk 0:01:49.5]} 20... Rc2 {[%clk
0:01:46.6]} 21. Nd4 {[%clk 0:01:46.5]} 21... Rc7 {[%clk 0:01:42.3]} 22. f4
{[%clk 0:01:39.7]} 22... Nc4 {[%clk 0:01:39.5]} 23. Bf3 {[%clk 0:01:20.4]} 23...
Nce3 {[%clk 0:01:30.7]} 24. Re1 {[%clk 0:01:07.5]} 24... Nc2 {[%clk 0:01:27]}
25. Nxc2 {[%clk 0:01:07.1]} 25... Rxc2 {[%clk 0:01:27.9]} 26. Bd1 {[%clk
0:00:59]} 26... Rc7 {[%clk 0:01:21]} 27. Bb3 {[%clk 0:00:58.8]} 27... Rfc8
{[%clk 0:01:20.4]} 28. g4 {[%clk 0:00:49.6]} 28... Nb4 {[%clk 0:01:12.1]} 29.
Nc3 {[%clk 0:00:48.1]} 29... Nd3 {[%clk 0:01:09.8]} 30. Re3 {[%clk 0:00:47.2]}
30... Bc5 {[%clk 0:01:07.7]} 31. Kf1 {[%clk 0:00:37.9]} 31... Nxc1 {[%clk
0:01:07]} 32. Rxe6 {[%clk 0:00:34]} 32... Nxb3 {[%clk 0:01:05.8]} 0-1

[Event "Late-Titled-Tuesday-Blitz-October-03-2023"]
[Site "Chess.com"]
[Date "2023.10.03"]
[Round "11"]
[White "GoltsevDmitry2000"]
[Black "Grossboss19"]
[Result "1-0"]
[WhiteElo "2681"]
[BlackElo "2517"]
[TimeControl "180+1"]
[EndTime "16:00:36 PDT"]
[Termination "GoltsevDmitry2000 won on time"]

1. e4 {[%clk 0:02:59.2]} 1... c6 {[%clk 0:01:58]} 2. d4 {[%clk 0:02:50.8]} 2...
d5 {[%clk 0:01:58.9]} 3. Nc3 {[%clk 0:02:51.2]} 3... dxe4 {[%clk 0:01:54]} 4.
Nxe4 {[%clk 0:02:52.1]} 4... Nd7 {[%clk 0:01:54.5]} 5. Qe2 {[%clk 0:02:52.4]}
5... Ndf6 {[%clk 0:01:51.8]} 6. Bf4 {[%clk 0:02:51.4]} 6... Nxe4 {[%clk
0:01:41.2]} 7. Qxe4 {[%clk 0:02:51.3]} 7... Nf6 {[%clk 0:01:42.1]} 8. Qd3 {[%clk
0:02:51]} 8... g6 {[%clk 0:01:35.2]} 9. Nf3 {[%clk 0:02:49.3]} 9... Bg7 {[%clk
0:01:34.1]} 10. Qb3 {[%clk 0:02:48.4]} 10... O-O {[%clk 0:01:30.1]} 11. Bd3
{[%clk 0:02:47.9]} 11... Nd5 {[%clk 0:01:16.3]} 12. Bd2 {[%clk 0:02:47.3]} 12...
Rb8 {[%clk 0:01:10]} 13. c4 {[%clk 0:02:43.8]} 13... Nc7 {[%clk 0:01:00.9]} 14.
O-O-O {[%clk 0:02:43.7]} 14... b5 {[%clk 0:00:58.8]} 15. Bf4 {[%clk 0:02:34.5]}
15... Be6 {[%clk 0:00:47.9]} 16. Qc2 {[%clk 0:02:31.1]} 16... bxc4 {[%clk
0:00:40.5]} 17. Bxc4 {[%clk 0:02:31.1]} 17... Bxc4 {[%clk 0:00:39.1]} 18. Qxc4
{[%clk 0:02:32]} 18... Rb6 {[%clk 0:00:37]} 19. h4 {[%clk 0:02:29.5]} 19... Nd5
{[%clk 0:00:32.7]} 20. Bd2 {[%clk 0:02:26.9]} 20... h5 {[%clk 0:00:28.3]} 21.
Ne5 {[%clk 0:02:22.3]} 21... Bxe5 {[%clk 0:00:26.2]} 22. dxe5 {[%clk 0:02:22.4]}
22... Qd7 {[%clk 0:00:22.9]} 23. Rhe1 {[%clk 0:02:15.9]} 23... Qf5 {[%clk
0:00:20]} 24. f4 {[%clk 0:02:05.8]} 24... e6 {[%clk 0:00:19.3]} 25. Qc2 {[%clk
0:01:59.2]} 25... Rfb8 {[%clk 0:00:18]} 26. Qxf5 {[%clk 0:01:57.8]} 26... gxf5
{[%clk 0:00:18.9]} 27. b3 {[%clk 0:01:58.3]} 27... c5 {[%clk 0:00:18.3]} 28. Kc2
{[%clk 0:01:56.9]} 28... Rc6 {[%clk 0:00:18.5]} 29. Rb1 {[%clk 0:01:55.7]} 29...
Rbc8 {[%clk 0:00:15.9]} 30. Kd3 {[%clk 0:01:47.4]} 30... c4+ {[%clk 0:00:16]}
31. bxc4 {[%clk 0:01:47.4]} 31... Rxc4 {[%clk 0:00:16.9]} 32. Rec1 {[%clk
0:01:33.7]} 32... Rxc1 {[%clk 0:00:14.4]} 33. Rxc1 {[%clk 0:01:34.6]} 33... Nb4+
{[%clk 0:00:12.6]} 34. Ke2 {[%clk 0:01:32.9]} 34... Rxc1 {[%clk 0:00:09.1]} 35.
Bxc1 {[%clk 0:01:33.8]} 35... Nxa2 {[%clk 0:00:05.6]} 36. Bd2 {[%clk 0:01:34.1]}
36... a5 {[%clk 0:00:06]} 37. Bxa5 {[%clk 0:01:33.9]} 37... Nc1+ {[%clk
0:00:06.6]} 38. Ke3 {[%clk 0:01:31.9]} 38... Nb3 {[%clk 0:00:05.2]} 39. Bb6
{[%clk 0:01:32]} 1-0